[Event "Early-Titled-Tuesday-Blitz-June-18-2024"]
[Site "Chess.com"]
[Date "2024.06.18"]
[Round "11"]
[White "ValeriyGrinev"]
[Black "PapaieDudu"]
[Result "0-1"]
[WhiteElo "2551"]
[BlackElo "2357"]
[TimeControl "180+1"]
[EndTime "10:03:35 PDT"]
[Termination "PapaieDudu won by resignation"]

1. d4 {[%clk 0:03:00.9]} 1... c5 {[%clk 0:03:00.1]} 2. d5 {[%clk 0:03:00.8]}
2... d6 {[%clk 0:03:00.5]} 3. c4 {[%clk 0:03:00]} 3... g6 {[%clk 0:03:01.4]} 4.
Nc3 {[%clk 0:02:59.9]} 4... Bg7 {[%clk 0:03:02.3]} 5. Bd2 {[%clk 0:02:58.4]}
5... Nf6 {[%clk 0:03:03.2]} 6. e4 {[%clk 0:02:58.2]} 6... O-O {[%clk 0:03:04.1]}
7. Nf3 {[%clk 0:02:58.3]} 7... Re8 {[%clk 0:03:04.7]} 8. Be2 {[%clk 0:02:56.6]}
8... a6 {[%clk 0:03:05.1]} 9. a4 {[%clk 0:02:54.8]} 9... b6 {[%clk 0:03:04]} 10.
O-O {[%clk 0:02:54.6]} 10... Bd7 {[%clk 0:03:04.5]} 11. Qc2 {[%clk 0:02:54.7]}
11... a5 {[%clk 0:03:05.1]} 12. b3 {[%clk 0:02:54.5]} 12... Na6 {[%clk
0:03:05.8]} 13. Rae1 {[%clk 0:02:53.8]} 13... Nb4 {[%clk 0:03:06.7]} 14. Qb1
{[%clk 0:02:54.1]} 14... e6 {[%clk 0:03:07.1]} 15. h3 {[%clk 0:02:52.7]} 15...
Qc7 {[%clk 0:03:07.4]} 16. Bf4 {[%clk 0:02:50.2]} 16... e5 {[%clk 0:03:07.1]}
17. Be3 {[%clk 0:02:49.2]} 17... Kh8 {[%clk 0:03:08]} 18. Nd2 {[%clk 0:02:48.5]}
18... Ng8 {[%clk 0:03:08.2]} 19. f4 {[%clk 0:02:46.1]} 19... f6 {[%clk
0:03:08.5]} 20. f5 {[%clk 0:02:43]} 20... g5 {[%clk 0:03:08.7]} 21. h4 {[%clk
0:02:43.1]} 21... gxh4 {[%clk 0:03:07.3]} 22. Bh5 {[%clk 0:02:43]} 22... Rf8
{[%clk 0:03:07.4]} 23. Nf3 {[%clk 0:02:42.8]} 23... Be8 {[%clk 0:03:07.9]} 24.
Bxe8 {[%clk 0:02:42.2]} 24... Raxe8 {[%clk 0:03:08.8]} 25. Nxh4 {[%clk
0:02:42.6]} 25... Qf7 {[%clk 0:03:09.5]} 26. Qd1 {[%clk 0:02:42.1]} 26... Bh6
{[%clk 0:03:04.8]} 27. Qf3 {[%clk 0:02:40.7]} 27... Bxe3+ {[%clk 0:03:01.3]} 28.
Rxe3 {[%clk 0:02:41.6]} 28... Nc2 {[%clk 0:03:02.1]} 29. Rd3 {[%clk 0:02:39.8]}
29... Nd4 {[%clk 0:03:01.9]} 30. Qg4 {[%clk 0:02:39.7]} 30... Qg7 {[%clk
0:03:01.5]} 31. Qh5 {[%clk 0:02:32]} 31... Nh6 {[%clk 0:03:00]} 32. Rh3 {[%clk
0:02:29.6]} 32... Rg8 {[%clk 0:02:48.1]} 33. Ng6+ {[%clk 0:02:27.8]} 33... hxg6
{[%clk 0:02:48.3]} 34. Qxh6+ {[%clk 0:02:28.1]} 34... Qxh6 {[%clk 0:02:48.8]}
35. Rxh6+ {[%clk 0:02:29]} 35... Kg7 {[%clk 0:02:49.7]} 36. Rxg6+ {[%clk
0:02:29.5]} 36... Kf7 {[%clk 0:02:50]} 37. Rxg8 {[%clk 0:02:29.6]} 37... Rxg8
{[%clk 0:02:50.9]} 38. Nb5 {[%clk 0:02:29.8]} 38... Nxb5 {[%clk 0:02:46.1]} 39.
axb5 {[%clk 0:02:29.2]} 39... Rg4 {[%clk 0:02:38.8]} 40. Re1 {[%clk 0:02:28.8]}
40... Rg3 {[%clk 0:02:39.1]} 41. Kf2 {[%clk 0:02:19]} 41... Rxb3 {[%clk
0:02:38.6]} 42. Rb1 {[%clk 0:02:19]} 42... Rxb1 {[%clk 0:02:36.6]} 0-1

[Event "Early-Titled-Tuesday-Blitz-June-18-2024"]
[Site "Chess.com"]
[Date "2024.06.18"]
[Round "11"]
[White "HansOnTwitch"]
[Black "zimmm36"]
[Result "1-0"]
[WhiteElo "3134"]
[BlackElo "2804"]
[TimeControl "180+1"]
[EndTime "10:03:56 PDT"]
[Termination "HansOnTwitch won by resignation"]

1. e4 {[%clk 0:03:00.1]} 1... c6 {[%clk 0:03:00]} 2. d4 {[%clk 0:02:57.5]} 2...
d5 {[%clk 0:03:00.5]} 3. e5 {[%clk 0:02:58]} 3... Bf5 {[%clk 0:03:00.8]} 4. Nd2
{[%clk 0:02:56.9]} 4... e6 {[%clk 0:02:59.5]} 5. Nb3 {[%clk 0:02:56.6]} 5... a6
{[%clk 0:02:58.8]} 6. Be3 {[%clk 0:02:51.1]} 6... Ne7 {[%clk 0:02:56.5]} 7. Nf3
{[%clk 0:02:51]} 7... h6 {[%clk 0:02:56.4]} 8. Be2 {[%clk 0:02:50.6]} 8... Nd7
{[%clk 0:02:54.8]} 9. O-O {[%clk 0:02:50.6]} 9... g5 {[%clk 0:02:55.2]} 10. c4
{[%clk 0:02:49.3]} 10... Bg7 {[%clk 0:02:55.1]} 11. Rc1 {[%clk 0:02:45.8]} 11...
O-O {[%clk 0:02:54.7]} 12. Re1 {[%clk 0:02:44.3]} 12... Ng6 {[%clk 0:02:47.5]}
13. h3 {[%clk 0:02:42]} 13... f6 {[%clk 0:02:41.6]} 14. cxd5 {[%clk 0:02:42.2]}
14... exd5 {[%clk 0:02:32.7]} 15. Bd3 {[%clk 0:02:41.5]} 15... fxe5 {[%clk
0:02:30.2]} 16. Bxf5 {[%clk 0:02:35.3]} 16... Rxf5 {[%clk 0:02:31.1]} 17. dxe5
{[%clk 0:02:34.2]} 17... Ngxe5 {[%clk 0:02:28.9]} 18. Nfd4 {[%clk 0:02:28.8]}
18... Rf6 {[%clk 0:02:04.7]} 19. Bd2 {[%clk 0:02:28.4]} 19... Rg6 {[%clk
0:01:44]} 20. Nf5 {[%clk 0:02:19.2]} 20... g4 {[%clk 0:01:32.8]} 21. hxg4 {[%clk
0:02:18.6]} 21... Nxg4 {[%clk 0:01:32.3]} 22. Ne7+ {[%clk 0:02:17.2]} 1-0

[Event "Early-Titled-Tuesday-Blitz-June-18-2024"]
[Site "Chess.com"]
[Date "2024.06.18"]
[Round "11"]
[White "Adar_07"]
[Black "wonderfultime"]
[Result "0-1"]
[WhiteElo "2811"]
[BlackElo "3033"]
[TimeControl "180+1"]
[EndTime "10:05:06 PDT"]
[Termination "wonderfultime won by resignation"]

1. e4 {[%clk 0:03:00.9]} 1... e5 {[%clk 0:03:00.1]} 2. Nf3 {[%clk 0:02:51.4]}
2... Nc6 {[%clk 0:03:00.2]} 3. Bb5 {[%clk 0:02:51.2]} 3... a6 {[%clk 0:03:00.3]}
4. Ba4 {[%clk 0:02:51.3]} 4... Bc5 {[%clk 0:03:00.5]} 5. O-O {[%clk 0:02:50.6]}
5... Nge7 {[%clk 0:03:00.7]} 6. c3 {[%clk 0:02:50.5]} 6... Ng6 {[%clk
0:03:00.9]} 7. d4 {[%clk 0:02:50.3]} 7... Ba7 {[%clk 0:03:01.6]} 8. Bg5 {[%clk
0:02:45.6]} 8... f6 {[%clk 0:03:01.5]} 9. Be3 {[%clk 0:02:45.2]} 9... O-O {[%clk
0:03:01.7]} 10. Nbd2 {[%clk 0:02:42.2]} 10... Kh8 {[%clk 0:03:01.4]} 11. h4
{[%clk 0:02:33.1]} 11... d6 {[%clk 0:02:48]} 12. h5 {[%clk 0:02:31.8]} 12...
Nge7 {[%clk 0:02:48.2]} 13. dxe5 {[%clk 0:02:09.3]} 13... fxe5 {[%clk
0:02:40.4]} 14. Bxa7 {[%clk 0:02:01.6]} 14... Rxa7 {[%clk 0:02:39]} 15. Nh4
{[%clk 0:01:46.6]} 15... Ng8 {[%clk 0:02:36.4]} 16. g3 {[%clk 0:01:43.7]} 16...
Qg5 {[%clk 0:02:34.4]} 17. Bxc6 {[%clk 0:01:32.7]} 17... bxc6 {[%clk 0:02:33.3]}
18. Qe2 {[%clk 0:01:32.8]} 18... Nf6 {[%clk 0:02:14.7]} 19. Qe3 {[%clk
0:01:14.4]} 19... Qxe3 {[%clk 0:02:13.5]} 20. fxe3 {[%clk 0:01:15.3]} 20... Ra8
{[%clk 0:02:14.1]} 21. h6 {[%clk 0:01:12.8]} 21... gxh6 {[%clk 0:02:13.5]} 22.
Nf5 {[%clk 0:01:08.8]} 22... Nxe4 {[%clk 0:02:00.6]} 23. Nxh6 {[%clk 0:00:38]}
23... Rxf1+ {[%clk 0:01:59.5]} 24. Nxf1 {[%clk 0:00:37.8]} 24... Kg7 {[%clk
0:01:59.8]} 0-1

[Event "Early-Titled-Tuesday-Blitz-June-18-2024"]
[Site "Chess.com"]
[Date "2024.06.18"]
[Round "11"]
[White "mostafa_sakha"]
[Black "JAN2404"]
[Result "1-0"]
[WhiteElo "2396"]
[BlackElo "2070"]
[TimeControl "180+1"]
[EndTime "10:05:27 PDT"]
[Termination "mostafa_sakha won by resignation"]

1. d4 {[%clk 0:03:00.1]} 1... Nf6 {[%clk 0:02:35.8]} 2. c4 {[%clk 0:02:59.7]}
2... g6 {[%clk 0:02:35.9]} 3. Nc3 {[%clk 0:02:59.9]} 3... Bg7 {[%clk 0:02:36.5]}
4. e4 {[%clk 0:03:00.1]} 4... d6 {[%clk 0:02:36]} 5. Nf3 {[%clk 0:03:00.5]} 5...
O-O {[%clk 0:02:36.5]} 6. Be2 {[%clk 0:03:01.1]} 6... e5 {[%clk 0:02:35.9]} 7.
O-O {[%clk 0:03:01.7]} 7... Nc6 {[%clk 0:02:36.3]} 8. d5 {[%clk 0:03:02.3]} 8...
Ne7 {[%clk 0:02:36.6]} 9. Ne1 {[%clk 0:03:02.8]} 9... Nd7 {[%clk 0:02:36.7]} 10.
Be3 {[%clk 0:03:03.4]} 10... f5 {[%clk 0:02:36.8]} 11. f3 {[%clk 0:03:04]} 11...
f4 {[%clk 0:02:36.1]} 12. Bf2 {[%clk 0:03:04.5]} 12... Nf6 {[%clk 0:02:35.3]}
13. c5 {[%clk 0:03:04.4]} 13... g5 {[%clk 0:02:32.1]} 14. Rc1 {[%clk 0:03:04.4]}
14... Rf7 {[%clk 0:02:32.1]} 15. Nd3 {[%clk 0:03:03.9]} 15... a6 {[%clk
0:02:29]} 16. Kh1 {[%clk 0:03:03.4]} 16... h5 {[%clk 0:02:28]} 17. cxd6 {[%clk
0:03:03.2]} 17... cxd6 {[%clk 0:02:27.7]} 18. Na4 {[%clk 0:03:03.7]} 18... Nd7
{[%clk 0:02:22.9]} 19. Qc2 {[%clk 0:02:36.8]} 19... b5 {[%clk 0:02:22]} 20. Nc3
{[%clk 0:02:30.7]} 20... Bb7 {[%clk 0:02:22.1]} 21. a4 {[%clk 0:02:29.6]} 21...
Rc8 {[%clk 0:01:45.6]} 22. axb5 {[%clk 0:02:28.1]} 22... axb5 {[%clk 0:01:46.5]}
23. Qb3 {[%clk 0:02:25.9]} 23... Ba6 {[%clk 0:01:37.8]} 24. Nb4 {[%clk
0:02:24.4]} 24... Nb8 {[%clk 0:01:30.6]} 25. Nxa6 {[%clk 0:02:16.5]} 25... Nxa6
{[%clk 0:01:30.1]} 26. Nxb5 {[%clk 0:02:17.4]} 26... Nc5 {[%clk 0:01:29.2]} 27.
Bxc5 {[%clk 0:02:15.3]} 27... dxc5 {[%clk 0:01:29.3]} 28. d6 {[%clk 0:02:14.4]}
28... Nc6 {[%clk 0:00:27.6]} 29. Bc4 {[%clk 0:02:13.9]} 29... Qd7 {[%clk
0:00:27]} 30. Bxf7+ {[%clk 0:02:13.3]} 30... Qxf7 {[%clk 0:00:27.6]} 31. Qxf7+
{[%clk 0:02:13.8]} 31... Kxf7 {[%clk 0:00:28.5]} 32. Rxc5 {[%clk 0:02:14.4]} 1-0

[Event "Early-Titled-Tuesday-Blitz-June-18-2024"]
[Site "Chess.com"]
[Date "2024.06.18"]
[Round "11"]
[White "EvgenyBurmakin"]
[Black "N_Mullodzhanov"]
[Result "1-0"]
[WhiteElo "2418"]
[BlackElo "2529"]
[TimeControl "180+1"]
[EndTime "10:05:28 PDT"]
[Termination "EvgenyBurmakin won by checkmate"]

1. e4 {[%clk 0:03:00.9]} 1... c5 {[%clk 0:02:58.7]} 2. Nc3 {[%clk 0:03:00.6]}
2... e6 {[%clk 0:02:57.6]} 3. Nf3 {[%clk 0:03:00.3]} 3... Nc6 {[%clk 0:02:57.4]}
4. d4 {[%clk 0:03:00.4]} 4... cxd4 {[%clk 0:02:57]} 5. Nxd4 {[%clk 0:03:01.2]}
5... a6 {[%clk 0:02:57]} 6. a3 {[%clk 0:02:57.9]} 6... Qc7 {[%clk 0:02:56.7]} 7.
Be3 {[%clk 0:02:56.8]} 7... Nf6 {[%clk 0:02:55.6]} 8. g4 {[%clk 0:02:45.6]} 8...
Nxd4 {[%clk 0:02:50.5]} 9. Bxd4 {[%clk 0:02:44.7]} 9... Bc5 {[%clk 0:02:49]} 10.
g5 {[%clk 0:02:29.2]} 10... Bxd4 {[%clk 0:02:18.5]} 11. Qxd4 {[%clk 0:02:28.6]}
11... Nh5 {[%clk 0:02:14.4]} 12. Be2 {[%clk 0:02:24]} 12... e5 {[%clk
0:02:14.2]} 13. Nd5 {[%clk 0:02:00.6]} 13... Qb8 {[%clk 0:01:26.2]} 14. Qb6
{[%clk 0:01:37.2]} 14... Nf4 {[%clk 0:01:21.1]} 15. Nc7+ {[%clk 0:01:31.4]}
15... Kf8 {[%clk 0:01:19.6]} 16. Nxa8 {[%clk 0:00:50.2]} 16... Nxe2 {[%clk
0:01:14.9]} 17. Qd8# {[%clk 0:00:45.7]} 1-0

[Event "Early-Titled-Tuesday-Blitz-June-18-2024"]
[Site "Chess.com"]
[Date "2024.06.18"]
[Round "11"]
[White "KevinGeorgeMicheal"]
[Black "santosalberto1987"]
[Result "1-0"]
[WhiteElo "2495"]
[BlackElo "2580"]
[TimeControl "180+1"]
[EndTime "10:05:31 PDT"]
[Termination "KevinGeorgeMicheal won by resignation"]

1. Nf3 {[%clk 0:03:00.9]} 1... d5 {[%clk 0:02:42.9]} 2. d4 {[%clk 0:02:59.5]}
2... Nf6 {[%clk 0:02:42.8]} 3. c4 {[%clk 0:02:58.8]} 3... c6 {[%clk 0:02:42.7]}
4. cxd5 {[%clk 0:02:58.1]} 4... cxd5 {[%clk 0:02:42.8]} 5. Nc3 {[%clk
0:02:58.5]} 5... Nc6 {[%clk 0:02:42.8]} 6. Bf4 {[%clk 0:02:58.8]} 6... Bf5
{[%clk 0:02:42.5]} 7. e3 {[%clk 0:02:47.9]} 7... e6 {[%clk 0:02:42.4]} 8. Bd3
{[%clk 0:02:47.8]} 8... Bxd3 {[%clk 0:02:42.2]} 9. Qxd3 {[%clk 0:02:48.4]} 9...
Be7 {[%clk 0:02:42.5]} 10. O-O {[%clk 0:02:47.6]} 10... O-O {[%clk 0:02:42.6]}
11. Rfc1 {[%clk 0:02:46.3]} 11... Rc8 {[%clk 0:02:39.8]} 12. h3 {[%clk 0:02:46]}
12... Na5 {[%clk 0:02:36.9]} 13. b3 {[%clk 0:02:41.2]} 13... Ba3 {[%clk
0:02:33.8]} 14. Rc2 {[%clk 0:02:40.1]} 14... Nc6 {[%clk 0:02:33.8]} 15. Nb5
{[%clk 0:02:06]} 15... Be7 {[%clk 0:02:20.7]} 16. Qe2 {[%clk 0:01:22.4]} 16...
a6 {[%clk 0:02:15.5]} 17. Nc3 {[%clk 0:01:22.1]} 17... Ba3 {[%clk 0:02:09.7]}
18. Na4 {[%clk 0:01:19.3]} 18... Ne4 {[%clk 0:02:04.9]} 19. Nd2 {[%clk
0:01:09.8]} 19... Nxd2 {[%clk 0:01:53.4]} 20. Qxd2 {[%clk 0:01:06.9]} 20... Nb4
{[%clk 0:01:50.1]} 21. Rxc8 {[%clk 0:00:55.8]} 21... Qxc8 {[%clk 0:01:51]} 22.
Bd6 {[%clk 0:00:55.9]} 22... Nc2 {[%clk 0:01:28.3]} 23. Bxf8 {[%clk 0:00:49.1]}
1-0

[Event "Early-Titled-Tuesday-Blitz-June-18-2024"]
[Site "Chess.com"]
[Date "2024.06.18"]
[Round "11"]
[White "ChessSwole"]
[Black "Casper"]
[Result "1-0"]
[WhiteElo "2705"]
[BlackElo "2498"]
[TimeControl "180+1"]
[EndTime "10:05:34 PDT"]
[Termination "ChessSwole won by resignation"]

1. e4 {[%clk 0:03:00.9]} 1... d5 {[%clk 0:03:00.9]} 2. exd5 {[%clk 0:02:59.2]}
2... Qxd5 {[%clk 0:03:01.8]} 3. Nc3 {[%clk 0:02:59.2]} 3... Qa5 {[%clk
0:03:02.5]} 4. d4 {[%clk 0:02:59.7]} 4... Nf6 {[%clk 0:03:01.3]} 5. Nf3 {[%clk
0:02:59.2]} 5... Bg4 {[%clk 0:03:01.2]} 6. h3 {[%clk 0:02:57.2]} 6... Bh5 {[%clk
0:03:00.6]} 7. g4 {[%clk 0:02:44.7]} 7... Bg6 {[%clk 0:03:00.5]} 8. Ne5 {[%clk
0:02:45.3]} 8... Nbd7 {[%clk 0:02:51.3]} 9. Nc4 {[%clk 0:02:45.3]} 9... Qa6
{[%clk 0:02:41.3]} 10. Bf4 {[%clk 0:02:45.8]} 10... Qe6+ {[%clk 0:02:35.6]} 11.
Ne3 {[%clk 0:02:45.6]} 11... Nb6 {[%clk 0:02:01.6]} 12. Nb5 {[%clk 0:02:44.2]}
12... Rc8 {[%clk 0:01:43.6]} 13. Nxa7 {[%clk 0:02:39.9]} 13... Ra8 {[%clk
0:01:43.5]} 14. Nb5 {[%clk 0:02:39.7]} 14... Rc8 {[%clk 0:01:43.8]} 15. Bg2
{[%clk 0:02:30.3]} 15... Nbd5 {[%clk 0:01:42.1]} 16. Be5 {[%clk 0:02:24.4]}
16... c6 {[%clk 0:01:38.2]} 17. Nc3 {[%clk 0:02:14.2]} 17... Nxc3 {[%clk
0:01:31.2]} 18. bxc3 {[%clk 0:02:15.1]} 18... Ne4 {[%clk 0:01:31.4]} 19. O-O
{[%clk 0:01:56]} 19... f6 {[%clk 0:01:30.4]} 20. Bh2 {[%clk 0:01:46.6]} 20... h5
{[%clk 0:01:26.1]} 21. f4 {[%clk 0:01:43.1]} 21... Nxc3 {[%clk 0:01:22.9]} 22.
Qe1 {[%clk 0:01:42.4]} 22... hxg4 {[%clk 0:01:16.3]} 23. Qxc3 {[%clk 0:01:31.3]}
23... gxh3 {[%clk 0:01:12.7]} 24. Bf3 {[%clk 0:01:31.9]} 24... Be4 {[%clk
0:00:58.6]} 25. f5 {[%clk 0:01:19.9]} 25... Bxf5 {[%clk 0:00:58.5]} 26. Nxf5
{[%clk 0:01:20.8]} 26... Qxf5 {[%clk 0:00:59]} 27. Bxc6+ {[%clk 0:01:18.1]} 1-0

[Event "Early-Titled-Tuesday-Blitz-June-18-2024"]
[Site "Chess.com"]
[Date "2024.06.18"]
[Round "11"]
[White "Schattman"]
[Black "Yaacovn"]
[Result "1-0"]
[WhiteElo "2514"]
[BlackElo "2799"]
[TimeControl "180+1"]
[EndTime "10:05:36 PDT"]
[Termination "Schattman won on time"]

1. Nf3 {[%clk 0:03:00.4]} 1... c6 {[%clk 0:02:53.8]} 2. g3 {[%clk 0:03:00.2]}
2... d5 {[%clk 0:02:50.3]} 3. Bg2 {[%clk 0:03:00.6]} 3... g6 {[%clk 0:02:47.7]}
4. O-O {[%clk 0:03:00.1]} 4... Bg7 {[%clk 0:02:04.8]} 5. d4 {[%clk 0:02:58.8]}
5... Nf6 {[%clk 0:01:51.9]} 6. c4 {[%clk 0:02:58.4]} 6... O-O {[%clk 0:01:51.8]}
7. cxd5 {[%clk 0:02:58.3]} 7... cxd5 {[%clk 0:01:50.7]} 8. Ne5 {[%clk
0:02:58.3]} 8... Nc6 {[%clk 0:01:39]} 9. Nc3 {[%clk 0:02:51.6]} 9... e6 {[%clk
0:01:20.9]} 10. Nxc6 {[%clk 0:02:47.1]} 10... bxc6 {[%clk 0:01:17.7]} 11. b3
{[%clk 0:02:47.3]} 11... Nd7 {[%clk 0:01:16.2]} 12. Na4 {[%clk 0:02:45]} 12...
Ba6 {[%clk 0:01:15.9]} 13. Ba3 {[%clk 0:02:43.6]} 13... Re8 {[%clk 0:01:06.7]}
14. Qd2 {[%clk 0:02:43.9]} 14... Bb5 {[%clk 0:00:52.6]} 15. Nc5 {[%clk
0:02:39.7]} 15... Nxc5 {[%clk 0:00:36.9]} 16. Bxc5 {[%clk 0:02:38.2]} 16... a5
{[%clk 0:00:34.5]} 17. a4 {[%clk 0:02:36.9]} 17... Ba6 {[%clk 0:00:30.3]} 18.
Rfe1 {[%clk 0:02:36.7]} 18... Qc7 {[%clk 0:00:28.1]} 19. f4 {[%clk 0:02:32.4]}
19... Bf8 {[%clk 0:00:17.8]} 20. Rec1 {[%clk 0:02:24.5]} 20... Bxc5 {[%clk
0:00:15.1]} 21. Rxc5 {[%clk 0:02:24.6]} 21... Bb7 {[%clk 0:00:15.2]} 22. e3
{[%clk 0:02:13.7]} 22... Qb6 {[%clk 0:00:15.3]} 23. Qc3 {[%clk 0:02:04.6]} 1-0

[Event "Early-Titled-Tuesday-Blitz-June-18-2024"]
[Site "Chess.com"]
[Date "2024.06.18"]
[Round "11"]
[White "pinelone"]
[Black "AljoschaFeuerstack"]
[Result "0-1"]
[WhiteElo "2470"]
[BlackElo "2644"]
[TimeControl "180+1"]
[EndTime "10:05:41 PDT"]
[Termination "AljoschaFeuerstack won by checkmate"]

1. Nf3 {[%clk 0:03:00.9]} 1... d5 {[%clk 0:02:34.5]} 2. d4 {[%clk 0:02:59.8]}
2... Nf6 {[%clk 0:02:34.3]} 3. c4 {[%clk 0:03:00]} 3... c6 {[%clk 0:02:34.2]} 4.
cxd5 {[%clk 0:03:00.2]} 4... cxd5 {[%clk 0:02:35.1]} 5. Nc3 {[%clk 0:03:00.5]}
5... Nc6 {[%clk 0:02:35.7]} 6. Bf4 {[%clk 0:03:00.6]} 6... g6 {[%clk 0:02:35.9]}
7. e3 {[%clk 0:03:00.5]} 7... Bg7 {[%clk 0:02:35.8]} 8. h3 {[%clk 0:03:00.3]}
8... O-O {[%clk 0:02:35.9]} 9. Be2 {[%clk 0:02:55.5]} 9... Ne4 {[%clk
0:02:33.7]} 10. O-O {[%clk 0:02:52.9]} 10... Nxc3 {[%clk 0:02:32.2]} 11. bxc3
{[%clk 0:02:52.9]} 11... Bf5 {[%clk 0:02:33.1]} 12. c4 {[%clk 0:02:52.3]} 12...
dxc4 {[%clk 0:02:26.1]} 13. Bxc4 {[%clk 0:02:52.3]} 13... Rc8 {[%clk 0:02:26.1]}
14. Rc1 {[%clk 0:02:51.4]} 14... Qa5 {[%clk 0:02:13.1]} 15. Bb3 {[%clk
0:02:44.5]} 15... Nb4 {[%clk 0:02:05.9]} 16. Qd2 {[%clk 0:02:42.2]} 16... Qb6
{[%clk 0:02:02.3]} 17. Ne5 {[%clk 0:02:32.3]} 17... Bxe5 {[%clk 0:01:41.4]} 18.
Bxe5 {[%clk 0:02:31]} 18... Nd3 {[%clk 0:01:41.6]} 19. Rxc8 {[%clk 0:02:24]}
19... Rxc8 {[%clk 0:01:42.5]} 20. g4 {[%clk 0:02:16.6]} 20... Nxe5 {[%clk
0:01:41.1]} 21. dxe5 {[%clk 0:02:12.6]} 21... Be6 {[%clk 0:01:40.4]} 22. Bxe6
{[%clk 0:02:05.1]} 22... Qxe6 {[%clk 0:01:41.3]} 23. f4 {[%clk 0:02:04.2]} 23...
b5 {[%clk 0:01:20.1]} 24. Rd1 {[%clk 0:02:01.5]} 24... Qb6 {[%clk 0:01:09.8]}
25. Qd4 {[%clk 0:01:53.3]} 25... Qb7 {[%clk 0:01:06.5]} 26. Qd7 {[%clk
0:01:44.3]} 26... Rc7 {[%clk 0:01:01.9]} 27. Qe8+ {[%clk 0:01:39.8]} 27... Kg7
{[%clk 0:01:02]} 28. Rd4 {[%clk 0:01:25.8]} 28... Rc1+ {[%clk 0:00:57.8]} 29.
Kf2 {[%clk 0:01:25]} 29... Rc2+ {[%clk 0:00:58.3]} 30. Ke1 {[%clk 0:01:18.4]}
30... Qh1# {[%clk 0:00:57.3]} 0-1

[Event "Early-Titled-Tuesday-Blitz-June-18-2024"]
[Site "Chess.com"]
[Date "2024.06.18"]
[Round "11"]
[White "Defenstrator"]
[Black "Oleg_Papayan"]
[Result "0-1"]
[WhiteElo "2382"]
[BlackElo "2545"]
[TimeControl "180+1"]
[EndTime "10:05:44 PDT"]
[Termination "Oleg_Papayan won by checkmate"]

1. e3 {[%clk 0:02:59.5]} 1... Nf6 {[%clk 0:02:57.7]} 2. Be2 {[%clk 0:03:00.4]}
2... d5 {[%clk 0:02:57.7]} 3. Nf3 {[%clk 0:02:58.7]} 3... c5 {[%clk 0:02:55.3]}
4. d4 {[%clk 0:02:58.5]} 4... Nc6 {[%clk 0:02:55.2]} 5. O-O {[%clk 0:02:57.7]}
5... Qc7 {[%clk 0:02:51.8]} 6. a3 {[%clk 0:02:50.8]} 6... e5 {[%clk 0:02:49.7]}
7. b4 {[%clk 0:02:34.9]} 7... e4 {[%clk 0:02:44]} 8. Nfd2 {[%clk 0:02:22.9]}
8... cxd4 {[%clk 0:02:42.8]} 9. b5 {[%clk 0:02:19]} 9... dxe3 {[%clk 0:02:33.4]}
10. bxc6 {[%clk 0:02:14]} 10... exd2 {[%clk 0:02:30.5]} 11. cxb7 {[%clk
0:02:03.8]} 11... dxc1=Q {[%clk 0:02:14.3]} 12. bxa8=Q {[%clk 0:02:02.4]} 12...
Qh6 {[%clk 0:02:10.3]} 13. g3 {[%clk 0:01:39.2]} 13... Bd6 {[%clk 0:02:01.3]}
14. Bb5+ {[%clk 0:01:32.8]} 14... Ke7 {[%clk 0:01:53.9]} 15. c4 {[%clk
0:00:58.4]} 15... Bg4 {[%clk 0:01:48.9]} 16. Qxh8 {[%clk 0:00:45.9]} 16... Bxd1
{[%clk 0:01:49.3]} 17. Rxd1 {[%clk 0:00:43.8]} 17... Ng4 {[%clk 0:01:49.8]} 18.
Qe8+ {[%clk 0:00:40.9]} 18... Kf6 {[%clk 0:01:49.5]} 19. h4 {[%clk 0:00:37.7]}
19... Bxg3 {[%clk 0:01:47.2]} 20. Nc3 {[%clk 0:00:32.7]} 20... Bxf2+ {[%clk
0:01:46.1]} 21. Kf1 {[%clk 0:00:33]} 21... Nh2+ {[%clk 0:01:33.7]} 22. Ke2
{[%clk 0:00:26.5]} 22... Qe3# {[%clk 0:01:32.2]} 0-1

[Event "Early-Titled-Tuesday-Blitz-June-18-2024"]
[Site "Chess.com"]
[Date "2024.06.18"]
[Round "11"]
[White "DmitryMaximov"]
[Black "doublesik"]
[Result "0-1"]
[WhiteElo "2771"]
[BlackElo "2612"]
[TimeControl "180+1"]
[EndTime "10:05:56 PDT"]
[Termination "doublesik won by resignation"]

1. e4 {[%clk 0:03:00.9]} 1... e6 {[%clk 0:02:59.6]} 2. d4 {[%clk 0:03:00.7]}
2... d5 {[%clk 0:02:59.5]} 3. e5 {[%clk 0:03:01.2]} 3... c5 {[%clk 0:02:58.7]}
4. c3 {[%clk 0:03:01.6]} 4... Nc6 {[%clk 0:02:56.5]} 5. Nf3 {[%clk 0:03:01.7]}
5... Bd7 {[%clk 0:02:56.2]} 6. Be2 {[%clk 0:03:01.3]} 6... Qb6 {[%clk
0:02:52.6]} 7. O-O {[%clk 0:03:01.2]} 7... Nge7 {[%clk 0:02:38.6]} 8. dxc5
{[%clk 0:03:00.4]} 8... Qxc5 {[%clk 0:02:37.8]} 9. Be3 {[%clk 0:02:59.4]} 9...
Qa5 {[%clk 0:02:37.4]} 10. b4 {[%clk 0:02:59.8]} 10... Qc7 {[%clk 0:02:35.8]}
11. Bd4 {[%clk 0:02:56.4]} 11... Ng6 {[%clk 0:02:34.3]} 12. Re1 {[%clk
0:02:53.3]} 12... Be7 {[%clk 0:02:30.7]} 13. a3 {[%clk 0:02:52.3]} 13... O-O
{[%clk 0:02:27.7]} 14. Bd3 {[%clk 0:02:52.8]} 14... f6 {[%clk 0:02:01.3]} 15.
exf6 {[%clk 0:02:52.7]} 15... gxf6 {[%clk 0:02:00.9]} 16. Bxg6 {[%clk
0:02:47.3]} 16... hxg6 {[%clk 0:02:01.1]} 17. c4 {[%clk 0:02:46.6]} 17... e5
{[%clk 0:01:42]} 18. Bb2 {[%clk 0:02:42.3]} 18... d4 {[%clk 0:01:40.7]} 19. b5
{[%clk 0:02:40.5]} 19... Nd8 {[%clk 0:01:35.4]} 20. Bxd4 {[%clk 0:02:35.2]}
20... Ne6 {[%clk 0:01:34.2]} 21. Be3 {[%clk 0:02:32.8]} 21... Rad8 {[%clk
0:01:32.5]} 22. Qc2 {[%clk 0:02:31.2]} 22... Kg7 {[%clk 0:01:31]} 23. Qc1 {[%clk
0:02:29.2]} 23... Rh8 {[%clk 0:01:29.5]} 24. Nbd2 {[%clk 0:02:29.3]} 24... g5
{[%clk 0:01:22.4]} 25. Ne4 {[%clk 0:02:29]} 25... g4 {[%clk 0:01:16.1]} 26. Nfd2
{[%clk 0:02:29.2]} 26... Be8 {[%clk 0:01:06.8]} 27. Ng3 {[%clk 0:02:28]} 27...
Bg6 {[%clk 0:01:05.9]} 28. Qb2 {[%clk 0:02:24.7]} 28... Nd4 {[%clk 0:01:03]} 29.
Bxd4 {[%clk 0:02:24.5]} 29... Rxd4 {[%clk 0:00:59.5]} 30. Rac1 {[%clk
0:02:23.5]} 30... Rhd8 {[%clk 0:00:56.3]} 31. Ndf1 {[%clk 0:02:21.5]} 31... Bc5
{[%clk 0:00:53.3]} 32. Ne3 {[%clk 0:02:21.6]} 32... Qc8 {[%clk 0:00:48.8]} 33.
Rcd1 {[%clk 0:02:19.7]} 33... Rxd1 {[%clk 0:00:43.9]} 34. Nxd1 {[%clk
0:02:19.9]} 34... Bd4 {[%clk 0:00:44.4]} 35. Qc1 {[%clk 0:02:19.4]} 35... Qc5
{[%clk 0:00:39.9]} 36. Ne3 {[%clk 0:02:18.8]} 36... Qc8 {[%clk 0:00:31.3]} 37.
a4 {[%clk 0:02:17.2]} 37... f5 {[%clk 0:00:31.3]} 38. Nexf5+ {[%clk 0:02:16.1]}
38... Bxf5 {[%clk 0:00:27.9]} 39. Qg5+ {[%clk 0:02:16.7]} 39... Bg6 {[%clk
0:00:27.6]} 40. Nf5+ {[%clk 0:02:17.1]} 40... Qxf5 {[%clk 0:00:21.8]} 41. Qe7+
{[%clk 0:02:17.1]} 41... Qf7 {[%clk 0:00:18.6]} 0-1